fUST/lending_fUST_20250727
["ID","MTS","AMOUNT","RATE_DAILY","PERIOD"]
[375331237,1753625442965,-311.96483399,0.00021758,2]
[375331239,1753625442975,-1247.85933598,0.00021758,2]
[375331241,1753625442985,-2807.68350594,0.00021758,2]
[375331243,1753625442995,-4991.4373439,0.00021758,2]
[375331245,1753625443004,-7791.321729,0.00021758,2]
[375331247,1753625443014,-500.0,0.00021822,2]
[375331249,1753625443023,-151.0,0.00021822,2]
[375331251,1753625443033,-296.51129216,0.00021822,2]
[375331253,1753625443043,-302.0,0.00021822,2]
[375331255,1753625443052,-151.4272048,0.00021822,2]
[375331257,1753625443062,-151.02849241,0.00021822,2]
[375331259,1753625443072,-500.0,0.00021822,2]
[375331261,1753625443081,-245.0,0.00021822,2]
[375331263,1753625443091,-41.67921665,0.00021822,2]
[375331550,1753625446662,-460.0,0.00019178,2]
[375331551,1753625446673,-460.0,0.0001945,2]
[375331552,1753625446684,-109.32078335,0.00021822,2]
[375331553,1753625446694,-161.14297112,0.00021822,2]
[375331554,1753625446704,-245.0,0.00021822,2]
[375331555,1753625446713,-716.13253307,0.00021866,6]
[375331556,1753625446723,-460.0,0.00021916,2]
[375331557,1753625446733,-500.0,0.00021917,2]
[375331558,1753625446743,-500.0,0.00021917,2]
[375331559,1753625446753,-500.0,0.00021917,2]
[375331560,1753625446763,-500.0,0.00021917,2]
[375331561,1753625446774,-500.0,0.00021917,2]
[375331562,1753625446784,-500.0,0.00021917,2]
[375331563,1753625446794,-500.0,0.00021917,2]
[375331564,1753625446804,-359.30961583,0.00021917,2]
[375331565,1753625446815,-776.73,0.00021917,2]
[375331566,1753625446825,-460.0,0.00021917,2]
[375331567,1753625446837,-460.0,0.00021917,2]
[375331568,1753625446848,-661.18,0.00021917,2]
[375331569,1753625446858,-1873.76,0.00021917,2]
[375331570,1753625446867,-460.0,0.00021917,2]
[375331571,1753625446877,-528.92,0.00021917,2]
[375331572,1753625446887,-128.50409664,0.00021917,2]
[375331573,1753625472433,150.0,0.00018286,2]
[375331575,1753625658935,354.114576,0.00013699,2]
[375331580,1753625890590,184.365126,0.00018376,2]
[375331583,1753625967899,4009.20618097,0.00018314,2]
[375331584,1753625967921,6013.40840053,0.00018314,2]
[375331585,1753626051721,150.0,0.00018422,2]
[375331586,1753626125974,150.0,0.00018409,2]
[375331587,1753626198563,150.0,0.00018435,2]
[375331588,1753626269829,150.0,0.00018447,2]
[375331592,1753626318593,1910.399388,0.00018363,2]
[375331594,1753626335343,11476.19221147,0.00018363,2]
[375331595,1753626335366,13423.80778853,0.00018363,2]
[375331596,1753626341213,150.0,0.00018419,2]
[375331599,1753626415151,150.0,0.00018268,2]
[375331601,1753626438138,-5000.0,0.00018711,2]
[375331602,1753626438161,-150.0,0.00019138,2]
[375331603,1753626438183,-300.0,0.00019176,2]
[375331604,1753626438211,-1200.0,0.00019177,2]
[375331605,1753626438232,-300.0,0.00019177,2]
[375331606,1753626438253,-1200.0,0.00019177,2]
[375331607,1753626438275,-460.0,0.00019178,2]
[375331608,1753626438296,-460.0,0.00019178,2]
[375331609,1753626438319,-152.29027447,0.00019178,2]
[375331611,1753626487119,150.0,0.00018264,2]
[375331618,1753626561100,-840.23871619,0.00018887,2]
[375331619,1753626561643,190.202867,0.0001832,2]
[375331620,1753626564793,150.0,0.00018284,2]
[375331690,1753626631982,-336.71629714,0.00018603,2]
[375331692,1753626631993,-2059.28677745,0.00018887,2]
[375331694,1753626632005,-2100.47450636,0.00018887,2]
[375331697,1753626632014,-987.82314561,0.000189,2]
[375331700,1753626632024,-155.5954302,0.00018978,2]
[375331703,1753626632033,-155.59543019,0.00019078,2]
[375331705,1753626632043,-150.0,0.00019134,2]
[375331707,1753626632052,-300.0,0.00019177,2]
[375331709,1753626632062,-307.70972553,0.00019178,2]
[375331711,1753626632071,-217.33857949,0.00019178,2]
[375331714,1753626632083,-248.75100961,0.00019178,2]
[375331717,1753626632093,-460.0,0.00019178,2]
[375331720,1753626632102,-460.0,0.00019178,2]
[375331722,1753626632111,-460.0,0.00019178,2]
[375331724,1753626632121,-460.0,0.00019178,2]
[375331725,1753626632130,-463.57901517,0.00019178,2]
[375331726,1753626632139,-460.0,0.00019178,2]
[375331727,1753626632148,-460.0,0.00019178,2]
[375331728,1753626632158,-182.8699752,0.00019178,2]
[375331730,1753626632169,-277.31286915,0.00019178,2]
[375331731,1753626632180,-460.0,0.00019178,2]
[375331732,1753626632189,-460.0,0.00019178,2]
[375331733,1753626632199,-454.39652137,0.00019178,2]
[375331734,1753626632208,-460.0,0.00019178,2]
[375331735,1753626632218,-2082.74,0.00019178,2]
[375331737,1753626632228,-460.0,0.00019178,2]
[375331739,1753626632237,-460.0,0.00019178,2]
[375331741,1753626632246,-460.0,0.00019178,2]
[375331744,1753626632256,-1601.15,0.00019178,2]
[375331746,1753626632266,-460.0,0.00019178,2]
[375331748,1753626632276,-460.0,0.00019178,2]
[375331750,1753626632285,-460.0,0.00019178,2]
[375331752,1753626632295,-460.0,0.00019178,2]
[375331754,1753626632305,-875.29,0.00019178,2]
[375331755,1753626632315,-460.0,0.00019178,2]
[375331756,1753626632324,-460.0,0.00019178,2]
[375331757,1753626632333,-460.0,0.00019178,2]
[375331758,1753626632342,-460.0,0.00019178,2]
[375331759,1753626632351,-460.0,0.00019178,2]
[375331760,1753626632361,-1168.5,0.00019178,2]
[375331761,1753626632370,-517.85578648,0.00019178,2]
[375331762,1753626632380,-460.0,0.00019178,2]
[375331763,1753626632390,-460.0,0.00019178,2]
[375331764,1753626632401,-460.0,0.00019178,2]
[375331765,1753626632411,-460.0,0.00019178,2]
[375331766,1753626632421,-460.0,0.00019178,2]
[375331767,1753626632430,-460.0,0.00019178,2]
[375331768,1753626632440,-460.0,0.00019178,2]
[375331769,1753626632450,-460.0,0.00019178,2]
[375331770,1753626632459,-460.0,0.00019178,2]
[375331771,1753626632469,-460.0,0.00019178,2]
[375331772,1753626632478,-45527.79081168,0.00019178,2]
[375331773,1753626632487,-194.959886,0.00019178,2]
[375331774,1753626632497,-165.53304096,0.00019199,2]
[375331775,1753626632507,-500.0,0.00019438,2]
[375331776,1753626632522,-218.0255472,0.00019438,2]
[375331777,1753626632532,-176.43797793,0.00019448,2]
[375331778,1753626632542,-202.70749133,0.00019448,2]
[375331779,1753626632551,-500.0,0.00019448,2]
[375331780,1753626632562,-500.0,0.00019448,2]
[375331781,1753626632572,-500.0,0.00019448,2]
[375331782,1753626632582,-500.0,0.00019448,2]
[375331783,1753626632591,-500.0,0.00019448,2]
[375331784,1753626632605,-500.0,0.00019448,2]
[375331785,1753626632614,-643.44524075,0.00019448,2]
[375331786,1753626632624,-500.0,0.00019448,2]
[375331787,1753626632633,-500.0,0.00019448,2]
[375331788,1753626632643,-500.0,0.00019448,2]
[375331789,1753626632653,-500.0,0.00019448,2]
[375331790,1753626632663,-500.0,0.00019448,2]
[375331791,1753626632673,-500.0,0.00019448,2]
[375331792,1753626632683,-500.0,0.00019448,2]
[375331793,1753626632693,-500.0,0.00019448,2]
[375331794,1753626632704,-500.0,0.00019448,2]
[375331795,1753626632713,-500.0,0.00019448,2]
[375331796,1753626632723,-500.0,0.00019448,2]
[375331797,1753626632732,-500.0,0.00019448,2]
[375331798,1753626632742,-500.0,0.00019448,2]
[375331799,1753626632752,-500.0,0.00019448,2]
[375331800,1753626632763,-500.0,0.00019448,2]
[375331801,1753626632772,-500.0,0.00019448,2]
[375331802,1753626632782,-500.0,0.00019448,2]
[375331803,1753626632791,-500.0,0.00019448,2]
[375331804,1753626632800,-500.0,0.00019448,2]
[375331805,1753626632811,-500.0,0.00019448,2]
[375331806,1753626632821,-500.0,0.00019448,2]
[375331807,1753626632831,-500.0,0.00019448,2]
[375331808,1753626632840,-500.0,0.00019448,2]
[375331809,1753626632849,-500.0,0.00019448,2]
[375331810,1753626632859,-500.0,0.00019448,2]
[375331811,1753626632868,-500.0,0.00019448,2]
[375331812,1753626632879,-200.0,0.00019448,2]
[375331813,1753626632889,-329.1904351,0.00019449,2]
[375331814,1753626632900,-460.0,0.00019449,2]
[375331815,1753626632910,-460.0,0.00019449,2]
[375331816,1753626632920,-460.0,0.00019449,2]
[375331817,1753626632929,-460.0,0.00019449,2]
[375331818,1753626632939,-460.0,0.00019449,2]
[375331819,1753626632950,-460.0,0.00019449,2]
[375331820,1753626632960,-460.0,0.00019449,2]
[375331821,1753626632971,-460.0,0.00019449,2]
[375331822,1753626632980,-460.0,0.00019449,2]
[375331823,1753626632990,-325.57932852,0.00019449,2]
[375331824,1753626632999,-460.0,0.00019449,2]
[375331825,1753626633008,-537.21228317,0.00019449,2]
[375331826,1753626633019,-460.0,0.00019449,2]
[375331827,1753626633029,-460.0,0.00019449,2]
[375331828,1753626633041,-460.0,0.00019449,2]
[375331829,1753626633051,-460.0,0.00019449,2]
[375331830,1753626633060,-460.0,0.00019449,2]
[375331831,1753626633070,-460.4630845,0.00019449,2]
[375331832,1753626633081,-460.0,0.00019449,2]
[375331833,1753626633091,-460.0,0.00019449,2]
[375331834,1753626633100,-466.44568702,0.00019449,2]
[375331835,1753626633110,-460.0,0.00019449,2]
[375331836,1753626633120,-460.08020547,0.00019449,2]
[375331838,1753626633129,-460.0,0.00019449,2]
[375331839,1753626633139,-174.95831635,0.00019449,2]
[375331841,1753626633149,-460.0,0.00019449,2]
[375331843,1753626633159,-460.0,0.00019449,2]
[375331844,1753626633168,-460.0,0.00019449,2]
[375331845,1753626633178,-460.0,0.00019449,2]
[375331847,1753626633188,-1000.0,0.00019449,2]
[375331849,1753626633198,-460.0,0.00019449,2]
[375331850,1753626633208,-460.0,0.00019449,2]
[375331851,1753626633217,-436.41179171,0.00019449,2]
[375331853,1753626633227,-460.0,0.00019449,2]
[375331854,1753626633237,-460.0,0.00019449,2]
[375331855,1753626633246,-460.0,0.00019449,2]
[375331856,1753626633256,-460.0,0.00019449,2]
[375331863,1753626633398,-567.09393117,0.00019449,2]
[375331864,1753626633409,-460.0,0.00019449,2]
[375331866,1753626633419,-460.0,0.00019449,2]
[375331868,1753626633429,-500.0,0.00019449,2]
[375331869,1753626633439,-500.0,0.00019449,2]
[375331871,1753626633449,-2076.27,0.00019449,2]
[375331873,1753626633458,-460.0,0.00019449,2]
[375331875,1753626633469,-460.0,0.00019449,2]
[375331876,1753626633479,-460.0,0.00019449,2]
[375331877,1753626633490,-460.0,0.00019449,2]
[375331878,1753626633500,-460.0,0.00019449,2]
[375331879,1753626633510,-464.03122356,0.00019449,2]
[375331880,1753626633529,-397.14661756,0.00019449,2]
[375331881,1753626633539,-460.0,0.00019449,2]
[375331882,1753626633550,-460.0,0.00019449,2]
[375331883,1753626633560,-460.0,0.00019449,2]
[375331884,1753626633571,-469.26103203,0.00019449,2]
[375331885,1753626633581,-460.0,0.00019449,2]
[375331886,1753626633591,-460.0,0.00019449,2]
[375331887,1753626633602,-460.0,0.00019449,2]
[375331888,1753626633612,-289.63056503,0.00019449,2]
[375331889,1753626633623,-460.0,0.00019449,2]
[375331890,1753626633632,-460.0,0.00019449,2]
[375331891,1753626633641,-460.0,0.00019449,2]
[375331892,1753626633652,-460.0,0.00019449,2]
[375331893,1753626633661,-460.0,0.00019449,2]
[375331894,1753626633670,-460.0,0.00019449,2]
[375331895,1753626633680,-460.0,0.00019449,2]
[375331896,1753626633689,-460.0,0.00019449,2]
[375331897,1753626633699,-1657.14,0.00019449,2]
[375331898,1753626633709,-460.0,0.00019449,2]
[375331899,1753626633720,-460.0,0.00019449,2]
[375331900,1753626633729,-460.0,0.00019449,2]
[375331901,1753626633739,-460.0,0.00019449,2]
[375331902,1753626633748,-460.0,0.00019449,2]
[375331903,1753626633757,-460.0,0.00019449,2]
[375331904,1753626633768,-249.72293544,0.00019449,2]
[375331905,1753626633778,-460.0,0.00019449,2]
[375331906,1753626633788,-460.0,0.00019449,2]
[375331907,1753626633798,-460.0,0.00019449,2]
[375331908,1753626633807,-460.0,0.00019449,2]
[375331909,1753626633817,-500.0,0.00019449,2]
[375331910,1753626633827,-500.0,0.00019449,2]
[375331911,1753626633836,-460.0,0.00019449,2]
[375331912,1753626633846,-460.0,0.00019449,2]
[375331913,1753626633855,-460.0,0.00019449,2]
[375331914,1753626633865,-460.0,0.00019449,2]
[375331915,1753626633874,-296.08122966,0.00019449,2]
[375331916,1753626633884,-460.0,0.00019449,2]
[375331917,1753626633893,-460.0,0.00019449,2]
[375331918,1753626633902,-460.0,0.00019449,2]
[375331919,1753626633912,-460.0,0.00019449,2]
[375331920,1753626633921,-460.0,0.00019449,2]
[375331921,1753626633940,-460.0,0.00019449,2]
[375331922,1753626633951,-460.0,0.00019449,2]
[375331923,1753626633960,-460.0,0.00019449,2]
[375331924,1753626633970,-520.55390597,0.0001945,2]
[375331925,1753626633980,-460.0,0.0001945,2]
[375331926,1753626633990,-460.0,0.0001945,2]
[375331927,1753626634000,-460.0,0.0001945,2]
[375331928,1753626634010,-478.90451859,0.0001945,2]
[375331929,1753626634020,-460.0,0.0001945,2]
[375331930,1753626634029,-460.0,0.0001945,2]
[375331931,1753626634039,-460.0,0.0001945,2]
[375331932,1753626634049,-460.0,0.0001945,2]
[375331933,1753626634059,-460.0,0.0001945,2]
[375331934,1753626634069,-460.0,0.0001945,2]
[375331935,1753626634079,-460.0,0.0001945,2]
[375331936,1753626634090,-460.0,0.0001945,2]
[375331937,1753626634102,-460.0,0.0001945,2]
[375331938,1753626634112,-476.89299615,0.0001945,2]
[375331939,1753626634122,-439.77191961,0.0001945,2]
[375331940,1753626634132,-460.0,0.0001945,2]
[375331941,1753626634142,-460.0,0.0001945,2]
[375331942,1753626634152,-467.30681667,0.0001945,2]
[375331943,1753626634162,-460.0,0.0001945,2]
[375331944,1753626634171,-460.0,0.0001945,2]
[375331945,1753626634181,-460.0,0.0001945,2]
[375331946,1753626634191,-460.0,0.0001945,2]
[375331947,1753626634202,-460.0,0.0001945,2]
[375331948,1753626634212,-460.0,0.0001945,2]
[375331949,1753626634222,-460.0,0.0001945,2]
[375331950,1753626634232,-460.0,0.0001945,2]
[375331951,1753626634243,-460.0,0.0001945,2]
[375331952,1753626634253,-460.0,0.0001945,2]
[375331953,1753626634264,-378.62376399,0.0001945,2]
[375331954,1753626634274,-460.0,0.0001945,2]
[375331955,1753626634284,-460.0,0.0001945,2]
[375331956,1753626634293,-323.73824741,0.0001945,2]
[375331957,1753626634303,-460.0,0.0001945,2]
[375331958,1753626634314,-460.0,0.0001945,2]
[375331959,1753626634323,-460.0,0.0001945,2]
[375331960,1753626634334,-460.0,0.0001945,2]
[375331961,1753626634344,-460.0,0.0001945,2]
[375331962,1753626634353,-460.0,0.0001945,2]
[375331963,1753626634363,-460.0,0.0001945,2]
[375331964,1753626634373,-460.0,0.0001945,2]
[375331965,1753626634383,-460.0,0.0001945,2]
[375331966,1753626634397,-460.0,0.0001945,2]
[375331967,1753626634407,-332.18629561,0.0001945,2]
[375331968,1753626634417,-460.0,0.0001945,2]
[375331969,1753626634427,-460.0,0.0001945,2]
[375331970,1753626634437,-460.0,0.0001945,2]
[375331971,1753626634447,-460.0,0.0001945,2]
[375331972,1753626634457,-460.0,0.0001945,2]
[375331973,1753626634468,-460.0,0.0001945,2]
[375331974,1753626634478,-460.0,0.0001945,2]
[375331975,1753626634488,-460.0,0.0001945,2]
[375331976,1753626634499,-460.0,0.0001945,2]
[375331977,1753626634509,-460.0,0.0001945,2]
[375331978,1753626634521,-460.0,0.0001945,2]
[375331979,1753626634531,-460.0,0.0001945,2]
[375331980,1753626634540,-460.0,0.0001945,2]
[375331981,1753626634551,-460.0,0.0001945,2]
[375331982,1753626634561,-460.0,0.0001945,2]
[375331983,1753626634571,-326.18110717,0.0001945,2]
[375331984,1753626634581,-460.0,0.0001945,2]
[375331985,1753626634591,-460.0,0.0001945,2]
[375331986,1753626634602,-460.0,0.0001945,2]
[375331987,1753626634612,-460.0,0.0001945,2]
[375331988,1753626634622,-460.0,0.0001945,2]
[375331989,1753626634631,-460.0,0.0001945,2]
[375331990,1753626634641,-461.20281249,0.0001945,2]
[375331991,1753626634650,-460.0,0.0001945,2]
[375331992,1753626634659,-460.0,0.0001945,2]
[375331993,1753626634668,-460.0,0.0001945,2]
[375331994,1753626634677,-460.0,0.0001945,2]
[375331995,1753626634687,-464.18260522,0.0001945,2]
[375331996,1753626634697,-460.0,0.0001945,2]
[375331997,1753626634707,-460.0,0.0001945,2]
[375331998,1753626634716,-460.0,0.0001945,2]
[375331999,1753626634726,-460.0,0.0001945,2]
[375332000,1753626634737,-460.0,0.0001945,2]
[375332001,1753626634747,-460.0,0.0001945,2]
[375332002,1753626634757,-460.00000001,0.0001945,2]
[375332003,1753626634768,-460.0,0.0001945,2]
[375332004,1753626634777,-326.85496512,0.0001945,2]
[375332005,1753626634787,-460.0,0.0001945,2]
[375332006,1753626634797,-460.0,0.0001945,2]
[375332007,1753626634806,-460.0,0.0001945,2]
[375332008,1753626634815,-460.0,0.0001945,2]
[375332009,1753626634825,-460.0,0.0001945,2]
[375332010,1753626634834,-460.0,0.0001945,2]
[375332011,1753626634843,-460.0,0.0001945,2]
[375332012,1753626634853,-460.0,0.0001945,2]
[375332013,1753626634862,-460.0,0.0001945,2]
[375332014,1753626634872,-460.0,0.0001945,2]
[375332015,1753626634882,-460.0,0.0001945,2]
[375332016,1753626634891,-460.0,0.0001945,2]
[375332017,1753626634900,-500.0,0.0001945,2]
[375332018,1753626634910,-460.0,0.0001945,2]
[375332019,1753626634919,-460.0,0.0001945,2]
[375332020,1753626634928,-460.0,0.0001945,2]
[375332021,1753626634938,-460.0,0.0001945,2]
[375332022,1753626634947,-460.0,0.0001945,2]
[375332023,1753626634957,-460.0,0.0001945,2]
[375332024,1753626634967,-460.0,0.0001945,2]
[375332025,1753626634977,-1247.19,0.0001945,2]
[375332026,1753626634987,-460.0,0.0001945,2]
[375332027,1753626634996,-460.0,0.0001945,2]
[375332028,1753626635015,-460.0,0.0001945,2]
[375332029,1753626635029,-462.27940581,0.0001945,2]
[375332030,1753626635042,-460.0,0.0001945,2]
[375332031,1753626635056,-460.0,0.0001945,2]
[375332032,1753626635068,-640.61,0.0001945,2]
[375332033,1753626635082,-460.0,0.0001945,2]
[375332034,1753626635094,-460.0,0.0001945,2]
[375332035,1753626635104,-460.0,0.0001945,2]
[375332036,1753626635115,-460.0,0.0001945,2]
[375332037,1753626635127,-460.0,0.0001945,2]
[375332038,1753626635139,-307.87917077,0.00019451,2]
[375332039,1753626635151,-178.96659893,0.00019451,2]
[375332040,1753626635162,-460.0,0.00019451,2]
[375332041,1753626635174,-584.91286071,0.00019451,2]
[375332042,1753626635186,-460.62441259,0.00019451,2]
[375332043,1753626635197,-460.0,0.00019451,2]
[375332044,1753626635209,-460.0,0.00019451,2]
[375332045,1753626635221,-460.0,0.00019451,2]
[375332046,1753626635233,-460.0,0.00019451,2]
[375332047,1753626635245,-460.0,0.00019451,2]
[375332048,1753626635258,-460.0,0.00019451,2]
[375332049,1753626635270,-460.0,0.00019451,2]
[375332050,1753626635282,-519.03080719,0.00019451,2]
[375332051,1753626635295,-460.0,0.00019451,2]
[375332052,1753626635307,-460.0,0.00019451,2]
[375332053,1753626635320,-460.0,0.00019451,2]
[375332054,1753626635331,-460.0,0.00019451,2]
[375332055,1753626635343,-460.0,0.00019451,2]
[375332056,1753626635355,-460.0,0.00019451,2]
[375332057,1753626635368,-460.0,0.00019451,2]
[375332058,1753626635382,-460.0,0.00019451,2]
[375332059,1753626635395,-460.0,0.00019451,2]
[375332060,1753626635407,-460.0,0.00019451,2]
[375332061,1753626635419,-460.0,0.00019451,2]
[375332062,1753626635431,-460.0,0.00019451,2]
[375332063,1753626635444,-460.0,0.00019451,2]
[375332064,1753626635455,-460.0,0.00019451,2]
[375332065,1753626635467,-460.0,0.00019451,2]
[375332066,1753626635480,-461.99394899,0.00019451,2]
[375332067,1753626635491,-460.0,0.00019451,2]
[375332068,1753626635502,-460.0,0.00019451,2]
[375332069,1753626635512,-501.71563604,0.00019451,2]
[375332070,1753626635527,-460.0,0.00019451,2]
[375332071,1753626635538,-460.0,0.00019451,2]
[375332072,1753626635550,-461.33514316,0.00019451,2]
[375332073,1753626635562,-460.0,0.00019451,2]
[375332074,1753626635573,-460.0,0.00019451,2]
[375332075,1753626635584,-460.0,0.00019451,2]
[375332076,1753626635596,-460.0,0.00019451,2]
[375332077,1753626635607,-460.0,0.00019451,2]
[375332078,1753626635618,-460.0,0.00019451,2]
[375332079,1753626635631,-452.79079048,0.00019451,2]
[375332080,1753626635642,-460.0,0.00019451,2]
[375332081,1753626635653,-460.0,0.00019451,2]
[375332082,1753626635664,-460.0,0.00019451,2]
[375332083,1753626635675,-460.0,0.00019451,2]
[375332084,1753626635686,-460.0,0.00019451,2]
[375332085,1753626635698,-460.0,0.00019451,2]
[375332086,1753626635710,-460.0,0.00019451,2]
[375332087,1753626635722,-460.0,0.00019451,2]
[375332088,1753626635735,-460.0,0.00019451,2]
[375332089,1753626635747,-452.05898746,0.00019451,2]
[375332090,1753626635757,-460.0,0.00019451,2]
[375332091,1753626635769,-2957.88,0.00019451,2]
[375332092,1753626635779,-460.0,0.00019451,2]
[375332093,1753626635789,-460.0,0.00019451,2]
[375332094,1753626635799,-460.0,0.00019451,2]
[375332095,1753626635809,-460.0,0.00019451,2]
[375332096,1753626635820,-790.48,0.00019451,2]
[375332097,1753626635832,-460.0,0.00019452,2]
[375332098,1753626635843,-460.0,0.00019452,2]
[375332099,1753626635855,-437.46997992,0.00019452,2]
[375332100,1753626635867,-460.0,0.00019452,2]
[375332101,1753626635879,-2082.74,0.00019452,2]
[375332102,1753626635891,-460.0,0.00019452,2]
[375332103,1753626635901,-1601.15,0.00019452,2]
[375332104,1753626635911,-460.0,0.00019452,2]
[375332105,1753626635922,-460.0,0.00019452,2]
[375332106,1753626635933,-473.6782629,0.00019452,2]
[375332107,1753626635943,-875.29,0.00019452,2]
[375332108,1753626635954,-460.0,0.00019452,2]
[375332109,1753626635965,-460.0,0.00019452,2]
[375332110,1753626635980,-215.14403475,0.00019452,2]
[375332111,1753626635991,-1168.5,0.00019452,2]
[375332112,1753626636002,-460.0,0.00019452,2]
[375332113,1753626636012,-551.68,0.00019452,2]
[375332114,1753626636022,-460.0,0.00019452,2]
[375332115,1753626636032,-437.59563615,0.00019452,2]
[375332116,1753626636043,-460.0,0.00019452,2]
[375332117,1753626636053,-460.0,0.00019452,2]
[375332118,1753626636063,-500.0,0.00019473,2]
[375332119,1753626636074,-500.9714425,0.00019473,2]
[375332120,1753626636084,-500.0,0.00019473,2]
[375332121,1753626636094,-500.0,0.00019473,2]
[375332122,1753626636105,-500.0,0.00019473,2]
[375332123,1753626636116,-500.0,0.00019473,2]
[375332124,1753626636127,-500.0,0.00019473,2]
[375332125,1753626636139,-500.0,0.00019473,2]
[375332126,1753626636149,-500.0,0.00019473,2]
[375332127,1753626636160,-502.55260872,0.00019473,2]
[375332128,1753626636171,-1167.10920216,0.00019623,2]
[375332129,1753626636182,-3568.75049825,0.00019631,2]
[375332130,1753626636193,-460.0,0.00019723,2]
[375332131,1753626636204,-460.0,0.00019723,2]
[375332132,1753626636215,-460.0,0.00019723,2]
[375332133,1753626636226,-63.76129247,0.00019723,2]
[375332134,1753626636245,-377.77915426,0.00019723,2]
[375332135,1753626636259,-18.45955327,0.00019723,2]
[375332136,1753626636270,-460.0,0.00019723,2]
[375332137,1753626636281,-460.0,0.00019723,2]
[375332138,1753626636292,-460.0,0.00019723,2]
[375332139,1753626636304,-460.0,0.00019723,2]
[375332140,1753626636315,-460.0,0.00019723,2]
[375332141,1753626636326,-460.0,0.00019723,2]
[375332142,1753626636337,-460.0,0.00019723,2]
[375332143,1753626636348,-460.0,0.00019723,2]
[375332144,1753626636358,-460.0,0.00019723,2]
[375332145,1753626636369,-460.0,0.00019723,2]
[375332146,1753626636380,-2076.27,0.00019723,2]
[375332147,1753626636391,-460.0,0.00019723,2]
[375332148,1753626636401,-460.0,0.00019723,2]
[375332149,1753626636412,-460.0,0.00019723,2]
[375332150,1753626636423,-460.0,0.00019723,2]
[375332151,1753626636434,-460.0,0.00019723,2]
[375332152,1753626636444,-460.0,0.00019723,2]
[375332153,1753626636455,-460.0,0.00019723,2]
[375332154,1753626636466,-460.0,0.00019723,2]
[375332155,1753626636477,-460.0,0.00019723,2]
[375332156,1753626636488,-460.0,0.00019723,2]
[375332157,1753626636498,-422.56310075,0.00019723,2]
[375332158,1753626636510,-460.0,0.00019723,2]
[375332159,1753626636524,-1657.14,0.00019723,2]
[375332160,1753626636536,-460.0,0.00019723,2]
[375332161,1753626636547,-438.80843845,0.00019723,2]
[375332162,1753626636559,-460.0,0.00019723,2]
[375332163,1753626636571,-460.0,0.00019723,2]
[375332164,1753626636582,-460.0,0.00019723,2]
[375332165,1753626636593,-460.0,0.00019723,2]
[375332166,1753626636604,-460.0,0.00019723,2]
[375332167,1753626636616,-460.0,0.00019723,2]
[375332168,1753626636627,-460.0,0.00019723,2]
[375332169,1753626636637,-460.0,0.00019723,2]
[375332170,1753626636648,-460.0,0.00019723,2]
[375332171,1753626636659,-460.0,0.00019723,2]
[375332172,1753626636669,-460.0,0.00019723,2]
[375332173,1753626636679,-8464.46697934,0.00019724,2]